[Event "*** Titled Tuesday Blitz"]
[Site "Chess.com"]
[Date "2020.05.26"]
[Round "1"]
[White "RU_B9"]
[Black "Muguet7"]
[Result "0-1"]
[WhiteElo "1849"]
[BlackElo "2466"]
[TimeControl "180+1"]
[EndTime "10:01:21 PDT"]
[Termination "Muguet7 won by resignation"]

1. c4 {[%clk 0:03:00.9]} 1... e5 {[%clk 0:02:59.5]} 2. Nc3 {[%clk 0:03:00.2]}
2... Nf6 {[%clk 0:02:59.3]} 3. Nf3 {[%clk 0:02:59.2]} 3... Nc6 {[%clk
0:02:58.9]} 4. e3 {[%clk 0:02:59.1]} 4... Bb4 {[%clk 0:02:58.4]} 5. Qc2 {[%clk
0:02:59]} 5... O-O {[%clk 0:02:56.9]} 6. Nd5 {[%clk 0:02:57.7]} 6... Re8 {[%clk
0:02:56.6]} 7. Qf5 {[%clk 0:02:53.2]} 7... d6 {[%clk 0:02:55.2]} 8. Nxf6+ {[%clk
0:02:52.6]} 8... gxf6 {[%clk 0:02:50.9]} 9. Qh5 {[%clk 0:02:51.4]} 9... e4
{[%clk 0:02:37.3]} 10. Nh4 {[%clk 0:02:49.1]} 10... Re5 {[%clk 0:02:35.9]} 11.
Qg4+ {[%clk 0:02:42.2]} 11... Bxg4 {[%clk 0:02:34.4]} 0-1

[Event "*** Titled Tuesday Blitz"]
[Site "Chess.com"]
[Date "2020.05.26"]
[Round "1"]
[White "yamalchess"]
[Black "HanSchut"]
[Result "1-0"]
[WhiteElo "2518"]
[BlackElo "2146"]
[TimeControl "180+1"]
[EndTime "10:02:23 PDT"]
[Termination "yamalchess won by resignation"]

1. d4 {[%clk 0:03:00.9]} 1... Nf6 {[%clk 0:02:59.7]} 2. c4 {[%clk 0:03:00.4]}
2... g6 {[%clk 0:03:00.1]} 3. Nc3 {[%clk 0:03:00.7]} 3... d5 {[%clk 0:03:00.6]}
4. Bf4 {[%clk 0:02:58.8]} 4... Bg7 {[%clk 0:03:00]} 5. Qa4+ {[%clk 0:02:55.6]}
5... Bd7 {[%clk 0:02:47.3]} 6. Qb3 {[%clk 0:02:54.2]} 6... Bc6 {[%clk 0:02:40]}
7. e4 {[%clk 0:02:53.4]} 7... e6 {[%clk 0:01:57]} 8. cxd5 {[%clk 0:02:47.6]}
8... exd5 {[%clk 0:01:56.2]} 9. Bg5 {[%clk 0:02:47.7]} 9... b6 {[%clk
0:01:29.5]} 10. e5 {[%clk 0:02:45.4]} 10... h6 {[%clk 0:01:27.6]} 11. exf6
{[%clk 0:02:45.1]} 1-0

[Event "*** Titled Tuesday Blitz"]
[Site "Chess.com"]
[Date "2020.05.26"]
[Round "1"]
[White "Snegokhod"]
[Black "lachesisQ"]
[Result "0-1"]
[WhiteElo "2456"]
[BlackElo "3150"]
[TimeControl "180+1"]
[EndTime "10:03:04 PDT"]
[Termination "lachesisQ won by resignation"]

1. e4 {[%clk 0:02:58.9]} 1... c5 {[%clk 0:02:55.3]} 2. Nf3 {[%clk 0:02:58.7]}
2... d6 {[%clk 0:02:53.1]} 3. d4 {[%clk 0:02:58.5]} 3... cxd4 {[%clk 0:02:54]}
4. Qxd4 {[%clk 0:02:59]} 4... a6 {[%clk 0:02:52.6]} 5. Be3 {[%clk 0:02:58.3]}
5... Nc6 {[%clk 0:02:52.7]} 6. Qb6 {[%clk 0:02:58.4]} 6... Qxb6 {[%clk
0:02:48.5]} 7. Bxb6 {[%clk 0:02:59.3]} 7... Nf6 {[%clk 0:02:48.6]} 8. Nc3 {[%clk
0:02:58.9]} 8... e6 {[%clk 0:02:49.1]} 9. O-O-O {[%clk 0:02:58.6]} 9... Nd7
{[%clk 0:02:49]} 10. Na4 {[%clk 0:02:58]} 10... Nxb6 {[%clk 0:02:41.2]} 11. Nxb6
{[%clk 0:02:57.7]} 11... Rb8 {[%clk 0:02:41.9]} 12. Nd2 {[%clk 0:02:57.9]} 12...
Kd8 {[%clk 0:02:32.9]} 13. Ndc4 {[%clk 0:02:56.9]} 13... Kc7 {[%clk 0:02:33.1]}
14. c3 {[%clk 0:02:56.1]} 14... Be7 {[%clk 0:02:30]} 15. Be2 {[%clk 0:02:55.9]}
15... Rd8 {[%clk 0:02:29.7]} 16. Kc2 {[%clk 0:02:54.8]} 16... Bd7 {[%clk
0:02:28.6]} 17. Nxd7 {[%clk 0:02:53.7]} 17... Rxd7 {[%clk 0:02:28.5]} 18. a4
{[%clk 0:02:54.2]} 18... g6 {[%clk 0:02:25.9]} 19. h4 {[%clk 0:02:53.3]} 19...
f5 {[%clk 0:02:23.7]} 20. exf5 {[%clk 0:02:51.3]} 20... gxf5 {[%clk 0:02:23.7]}
21. g3 {[%clk 0:02:46.2]} 21... d5 {[%clk 0:02:23.3]} 22. Ne3 {[%clk 0:02:44.1]}
22... Bc5 {[%clk 0:02:22.9]} 23. Bf3 {[%clk 0:02:40.2]} 23... Bxe3 {[%clk
0:02:22.2]} 24. fxe3 {[%clk 0:02:40.4]} 24... Ne5 {[%clk 0:02:22.4]} 25. Be2
{[%clk 0:02:40.2]} 25... Rg8 {[%clk 0:02:22.1]} 26. Rdg1 {[%clk 0:02:39.6]}
26... Rdg7 {[%clk 0:02:22]} 27. Rh3 {[%clk 0:02:39.9]} 27... Kd6 {[%clk
0:02:18.8]} 28. h5 {[%clk 0:02:39.9]} 28... h6 {[%clk 0:02:18.6]} 29. a5 {[%clk
0:02:36]} 29... Nd7 {[%clk 0:02:17.4]} 30. b4 {[%clk 0:02:34.6]} 30... Nf6
{[%clk 0:02:16.1]} 31. Kb3 {[%clk 0:02:23.3]} 31... Ne4 {[%clk 0:02:14.8]} 32.
g4 {[%clk 0:02:16]} 32... fxg4 {[%clk 0:02:13.6]} 33. Rh4 {[%clk 0:02:16.2]}
33... g3 {[%clk 0:02:11.6]} 34. Bf3 {[%clk 0:02:16.3]} 34... Nd2+ {[%clk
0:02:11.8]} 35. Kc2 {[%clk 0:02:15.7]} 35... Nxf3 {[%clk 0:02:12.7]} 0-1

[Event "*** Titled Tuesday Blitz"]
[Site "Chess.com"]
[Date "2020.05.26"]
[Round "1"]
[White "Zq1"]
[Black "rugbyclub"]
[Result "1-0"]
[WhiteElo "2503"]
[BlackElo "2104"]
[TimeControl "180+1"]
[EndTime "10:03:25 PDT"]
[Termination "Zq1 won by resignation"]

1. d4 {[%clk 0:02:57.6]} 1... d5 {[%clk 0:02:55.7]} 2. c4 {[%clk 0:02:57.1]}
2... e6 {[%clk 0:02:55.4]} 3. Nc3 {[%clk 0:02:56.6]} 3... c6 {[%clk 0:02:50.7]}
4. e3 {[%clk 0:02:55.2]} 4... Nd7 {[%clk 0:02:49.6]} 5. Nf3 {[%clk 0:02:54.9]}
5... f5 {[%clk 0:02:49]} 6. Bd3 {[%clk 0:02:51.2]} 6... Bd6 {[%clk 0:02:41.3]}
7. h3 {[%clk 0:02:50]} 7... Ngf6 {[%clk 0:02:38.8]} 8. g4 {[%clk 0:02:49.9]}
8... Ne4 {[%clk 0:02:36.2]} 9. gxf5 {[%clk 0:02:48.8]} 9... exf5 {[%clk
0:02:33.9]} 10. cxd5 {[%clk 0:02:48.8]} 10... cxd5 {[%clk 0:02:28.3]} 11. Qb3
{[%clk 0:02:39]} 11... Ndf6 {[%clk 0:02:20.1]} 12. Ne5 {[%clk 0:02:37.8]} 12...
Nxc3 {[%clk 0:02:06.6]} 13. bxc3 {[%clk 0:02:36.1]} 13... Bxe5 {[%clk
0:01:39.9]} 14. dxe5 {[%clk 0:02:35.5]} 14... Ne4 {[%clk 0:01:39.1]} 15. Ba3
{[%clk 0:02:33.3]} 15... Qh4 {[%clk 0:01:35.6]} 16. Rf1 {[%clk 0:02:25.7]} 16...
Be6 {[%clk 0:01:27]} 17. Qxb7 {[%clk 0:02:22.1]} 17... Rd8 {[%clk 0:01:26.3]}
18. Bb5+ {[%clk 0:02:19]} 18... Bd7 {[%clk 0:01:26.1]} 19. Qxd5 {[%clk 0:02:15]}
19... Nxc3 {[%clk 0:01:17.5]} 20. Qe6+ {[%clk 0:02:12.4]} 1-0

[Event "*** Titled Tuesday Blitz"]
[Site "Chess.com"]
[Date "2020.05.26"]
[Round "1"]
[White "Pavel_Mir"]
[Black "csati17"]
[Result "1-0"]
[WhiteElo "2220"]
[BlackElo "2537"]
[TimeControl "180+1"]
[EndTime "10:03:28 PDT"]
[Termination "Pavel_Mir won by resignation"]

1. e4 {[%clk 0:02:58.7]} 1... e6 {[%clk 0:03:00.5]} 2. d4 {[%clk 0:02:58.1]}
2... d5 {[%clk 0:03:01]} 3. Nd2 {[%clk 0:02:58.2]} 3... Nf6 {[%clk 0:03:00.7]}
4. e5 {[%clk 0:02:57.5]} 4... Nfd7 {[%clk 0:03:01.2]} 5. Bd3 {[%clk 0:02:58]}
5... c5 {[%clk 0:03:02.1]} 6. c3 {[%clk 0:02:58.5]} 6... Nc6 {[%clk 0:03:03]} 7.
Ne2 {[%clk 0:02:58.6]} 7... cxd4 {[%clk 0:03:03.4]} 8. cxd4 {[%clk 0:02:59.2]}
8... f6 {[%clk 0:03:04.3]} 9. exf6 {[%clk 0:02:59.1]} 9... Nxf6 {[%clk
0:03:05.2]} 10. Nf3 {[%clk 0:02:58.4]} 10... Bd6 {[%clk 0:03:05.7]} 11. O-O
{[%clk 0:02:58.2]} 11... Qc7 {[%clk 0:03:06.6]} 12. Nc3 {[%clk 0:02:52.6]} 12...
a6 {[%clk 0:03:06.1]} 13. Be3 {[%clk 0:02:52.7]} 13... O-O {[%clk 0:03:05.5]}
14. Rc1 {[%clk 0:02:52.7]} 14... Ng4 {[%clk 0:02:35.7]} 15. Bxh7+ {[%clk
0:02:48.7]} 15... Kh8 {[%clk 0:02:31]} 16. Bb1 {[%clk 0:02:47.9]} 16... Bxh2+
{[%clk 0:02:07.6]} 17. Kh1 {[%clk 0:02:44.1]} 17... Qf7 {[%clk 0:01:39.1]} 18.
Nxh2 {[%clk 0:02:34.7]} 18... e5 {[%clk 0:01:16.2]} 19. Nxg4 {[%clk 0:02:27.9]}
1-0

[Event "*** Titled Tuesday Blitz"]
[Site "Chess.com"]
[Date "2020.05.26"]
[Round "1"]
[White "TheoSlade"]
[Black "kuban1991"]
[Result "0-1"]
[WhiteElo "2359"]
[BlackElo "2722"]
[TimeControl "180+1"]
[EndTime "10:03:42 PDT"]
[Termination "kuban1991 won by checkmate"]

1. d4 {[%clk 0:03:00.9]} 1... g6 {[%clk 0:02:59.4]} 2. c4 {[%clk 0:03:01.3]}
2... Bg7 {[%clk 0:02:59.8]} 3. e4 {[%clk 0:03:01.9]} 3... Nc6 {[%clk 0:02:58.9]}
4. Be3 {[%clk 0:02:59.8]} 4... e5 {[%clk 0:02:57.9]} 5. Ne2 {[%clk 0:02:47.3]}
5... exd4 {[%clk 0:02:57.3]} 6. Nxd4 {[%clk 0:02:47.2]} 6... Qf6 {[%clk
0:02:57.4]} 7. Nxc6 {[%clk 0:02:13.9]} 7... dxc6 {[%clk 0:02:58.3]} 8. Nc3
{[%clk 0:02:11.5]} 8... Qe7 {[%clk 0:02:57.6]} 9. Bd3 {[%clk 0:02:05.1]} 9...
Nf6 {[%clk 0:02:57.8]} 10. f3 {[%clk 0:01:57.8]} 10... O-O {[%clk 0:02:58.2]}
11. O-O {[%clk 0:01:58.3]} 11... Nd7 {[%clk 0:02:57.6]} 12. Qc2 {[%clk
0:01:54.7]} 12... Nc5 {[%clk 0:02:56.4]} 13. Be2 {[%clk 0:01:53.4]} 13... a5
{[%clk 0:02:54.7]} 14. Rad1 {[%clk 0:01:52.7]} 14... Be6 {[%clk 0:02:53.7]} 15.
Rfe1 {[%clk 0:01:53]} 15... Rfd8 {[%clk 0:02:52.3]} 16. b3 {[%clk 0:01:52.9]}
16... b6 {[%clk 0:02:44.1]} 17. Bf1 {[%clk 0:01:52.4]} 17... Rxd1 {[%clk
0:02:40.2]} 18. Rxd1 {[%clk 0:01:52.6]} 18... Rd8 {[%clk 0:02:40.5]} 19. Rxd8+
{[%clk 0:01:43.4]} 19... Qxd8 {[%clk 0:02:41.4]} 20. Qd1 {[%clk 0:01:30.2]}
20... Qe7 {[%clk 0:02:33.8]} 21. Ne2 {[%clk 0:01:30]} 21... f5 {[%clk
0:02:27.3]} 22. exf5 {[%clk 0:01:28.8]} 22... Bxf5 {[%clk 0:02:28.2]} 23. Bd4
{[%clk 0:01:20]} 23... Nd3 {[%clk 0:02:20.3]} 24. Bxg7 {[%clk 0:01:17.2]} 24...
Qe3+ {[%clk 0:02:19]} 25. Kh1 {[%clk 0:01:15.8]} 25... Nf2+ {[%clk 0:02:19.9]}
26. Kg1 {[%clk 0:01:16.2]} 26... Nh3+ {[%clk 0:02:13.7]} 27. Kh1 {[%clk
0:01:16.6]} 27... Qg1+ {[%clk 0:02:12.5]} 28. Nxg1 {[%clk 0:01:16.9]} 28... Nf2#
{[%clk 0:02:13.1]} 0-1

[Event "*** Titled Tuesday Blitz"]
[Site "Chess.com"]
[Date "2020.05.26"]
[Round "1"]
[White "NewBornNow"]
[Black "AcsinteMatei"]
[Result "1-0"]
[WhiteElo "2703"]
[BlackElo "2341"]
[TimeControl "180+1"]
[EndTime "10:03:43 PDT"]
[Termination "NewBornNow won by resignation"]

1. e4 {[%clk 0:02:57.6]} 1... c6 {[%clk 0:02:59.6]} 2. d4 {[%clk 0:02:55.8]}
2... d5 {[%clk 0:03:00.5]} 3. Nc3 {[%clk 0:02:55.3]} 3... g6 {[%clk 0:03:00]} 4.
h3 {[%clk 0:02:53.4]} 4... Bg7 {[%clk 0:02:56.3]} 5. Nf3 {[%clk 0:02:53.3]} 5...
dxe4 {[%clk 0:02:56]} 6. Nxe4 {[%clk 0:02:53.2]} 6... Nd7 {[%clk 0:02:50.5]} 7.
Bd3 {[%clk 0:02:51.1]} 7... Ngf6 {[%clk 0:02:50.7]} 8. O-O {[%clk 0:02:50.7]}
8... Nxe4 {[%clk 0:02:51.2]} 9. Bxe4 {[%clk 0:02:50.7]} 9... Nf6 {[%clk
0:02:52.1]} 10. Bd3 {[%clk 0:02:50.1]} 10... O-O {[%clk 0:02:49.7]} 11. c3
{[%clk 0:02:48.8]} 11... b6 {[%clk 0:02:36.2]} 12. Re1 {[%clk 0:02:47.1]} 12...
c5 {[%clk 0:02:35.8]} 13. Bf4 {[%clk 0:02:44]} 13... Bb7 {[%clk 0:02:34.7]} 14.
dxc5 {[%clk 0:02:41.6]} 14... bxc5 {[%clk 0:02:34.2]} 15. Ne5 {[%clk 0:02:39.9]}
15... Qd5 {[%clk 0:02:25.7]} 16. Bf1 {[%clk 0:02:36.6]} 16... Rfd8 {[%clk
0:02:19.6]} 17. Qxd5 {[%clk 0:02:30.5]} 17... Nxd5 {[%clk 0:02:19]} 18. Bg3
{[%clk 0:02:30.2]} 18... g5 {[%clk 0:02:10.2]} 19. Nc4 {[%clk 0:02:26.3]} 19...
Bf6 {[%clk 0:02:05.7]} 20. Na5 {[%clk 0:02:23.8]} 20... Rd7 {[%clk 0:02:01.9]}
21. Bb5 {[%clk 0:02:21.5]} 21... Rad8 {[%clk 0:01:59.6]} 22. Bxd7 {[%clk
0:02:19.3]} 22... Rxd7 {[%clk 0:02:00.5]} 23. Rad1 {[%clk 0:02:16.9]} 23... Ba6
{[%clk 0:01:47.1]} 24. c4 {[%clk 0:02:11.8]} 24... Nb6 {[%clk 0:01:46.4]} 25.
Rxd7 {[%clk 0:02:10.6]} 25... Nxd7 {[%clk 0:01:47.3]} 26. b3 {[%clk 0:02:09.7]}
26... Bc3 {[%clk 0:01:39.8]} 27. Rxe7 {[%clk 0:02:09]} 27... Nf6 {[%clk
0:01:34]} 28. Rxa7 {[%clk 0:02:07.6]} 1-0

[Event "*** Titled Tuesday Blitz"]
[Site "Chess.com"]
[Date "2020.05.26"]
[Round "1"]
[White "Franciscoconstantino"]
[Black "bazar-wokzal"]
[Result "0-1"]
[WhiteElo "1607"]
[BlackElo "2462"]
[TimeControl "180+1"]
[EndTime "10:03:58 PDT"]
[Termination "bazar-wokzal won by resignation"]

1. d4 {[%clk 0:03:00.9]} 1... Nf6 {[%clk 0:02:58.9]} 2. c4 {[%clk 0:03:00.3]}
2... Nc6 {[%clk 0:02:57.8]} 3. Nc3 {[%clk 0:02:53.6]} 3... e5 {[%clk 0:02:57.3]}
4. dxe5 {[%clk 0:02:42]} 4... Nxe5 {[%clk 0:02:57]} 5. e4 {[%clk 0:02:40.8]}
5... Bc5 {[%clk 0:02:56]} 6. Be2 {[%clk 0:02:10.4]} 6... d6 {[%clk 0:02:54.3]}
7. Nf3 {[%clk 0:02:08.8]} 7... Nfg4 {[%clk 0:02:47]} 8. O-O {[%clk 0:02:07.3]}
8... Nxf2 {[%clk 0:02:45]} 9. Rxf2 {[%clk 0:02:06.8]} 9... Ng4 {[%clk 0:02:45]}
10. Nd4 {[%clk 0:01:58.2]} 10... Nxf2 {[%clk 0:02:44.9]} 11. Kxf2 {[%clk
0:01:02.7]} 11... Qf6+ {[%clk 0:02:43.5]} 12. Ke3 {[%clk 0:00:51.5]} 12... Qe5
{[%clk 0:02:41.3]} 13. Nd5 {[%clk 0:00:26]} 13... O-O {[%clk 0:02:38.5]} 14. Bd2
{[%clk 0:00:19.8]} 14... f5 {[%clk 0:02:34.1]} 0-1

[Event "*** Titled Tuesday Blitz"]
[Site "Chess.com"]
[Date "2020.05.26"]
[Round "1"]
[White "mrkvoz"]
[Black "Omk124"]
[Result "1-0"]
[WhiteElo "2845"]
[BlackElo "2412"]
[TimeControl "180+1"]
[EndTime "10:04:01 PDT"]
[Termination "mrkvoz won by resignation"]

1. e4 {[%clk 0:02:53.7]} 1... c5 {[%clk 0:03:00.1]} 2. Nc3 {[%clk 0:02:53.3]}
2... a6 {[%clk 0:03:00]} 3. g3 {[%clk 0:02:51.9]} 3... b5 {[%clk 0:03:00.3]} 4.
Bg2 {[%clk 0:02:52.5]} 4... Bb7 {[%clk 0:03:00.8]} 5. Nge2 {[%clk 0:02:52.9]}
5... e6 {[%clk 0:03:01.4]} 6. d4 {[%clk 0:02:52.9]} 6... cxd4 {[%clk 0:02:59.7]}
7. Nxd4 {[%clk 0:02:53.8]} 7... Nc6 {[%clk 0:02:58.5]} 8. O-O {[%clk 0:02:52.9]}
8... d6 {[%clk 0:02:55.5]} 9. Re1 {[%clk 0:02:51.5]} 9... Nf6 {[%clk 0:02:55.6]}
10. e5 {[%clk 0:02:36.4]} 10... Nxd4 {[%clk 0:01:57.3]} 11. Bxb7 {[%clk
0:02:34.9]} 11... Rb8 {[%clk 0:01:57.4]} 12. exf6 {[%clk 0:02:33.3]} 12... e5
{[%clk 0:01:57.5]} 13. Bg2 {[%clk 0:02:16.7]} 13... Ne6 {[%clk 0:01:52]} 14.
fxg7 {[%clk 0:02:13.8]} 14... Bxg7 {[%clk 0:01:52.9]} 15. Nd5 {[%clk 0:02:07]}
15... O-O {[%clk 0:01:52.5]} 16. c3 {[%clk 0:02:07.1]} 16... f5 {[%clk
0:01:51.7]} 17. a4 {[%clk 0:02:03.7]} 17... e4 {[%clk 0:01:50.4]} 18. axb5
{[%clk 0:02:02.6]} 18... axb5 {[%clk 0:01:51.3]} 19. Ra7 {[%clk 0:02:01]} 19...
Nc5 {[%clk 0:01:47.2]} 20. Qh5 {[%clk 0:01:56.2]} 20... Nd3 {[%clk 0:01:45.2]}
21. Ne7+ {[%clk 0:01:47.3]} 21... Kh8 {[%clk 0:01:37.7]} 22. Ng6+ {[%clk
0:01:47.3]} 22... Kg8 {[%clk 0:01:38.1]} 23. Nxf8 {[%clk 0:01:47.4]} 23... Qxf8
{[%clk 0:01:38.8]} 24. Rf1 {[%clk 0:01:42]} 24... d5 {[%clk 0:01:38.7]} 25. Be3
{[%clk 0:01:36.6]} 1-0

[Event "*** Titled Tuesday Blitz"]
[Site "Chess.com"]
[Date "2020.05.26"]
[Round "1"]
[White "Roman_Ovetchkin"]
[Black "smshk35"]
[Result "1-0"]
[WhiteElo "2630"]
[BlackElo "2295"]
[TimeControl "180+1"]
[EndTime "10:04:07 PDT"]
[Termination "Roman_Ovetchkin won by resignation"]

1. d4 {[%clk 0:02:59.7]} 1... Nf6 {[%clk 0:02:59.1]} 2. c4 {[%clk 0:02:57.3]}
2... g6 {[%clk 0:02:58]} 3. Nc3 {[%clk 0:02:56.4]} 3... Bg7 {[%clk 0:02:58.3]}
4. e4 {[%clk 0:02:56.3]} 4... d6 {[%clk 0:02:58.6]} 5. Nf3 {[%clk 0:02:55.4]}
5... O-O {[%clk 0:02:58.9]} 6. Be2 {[%clk 0:02:55.6]} 6... e5 {[%clk 0:02:58.7]}
7. d5 {[%clk 0:02:55.1]} 7... Nbd7 {[%clk 0:02:58]} 8. Bg5 {[%clk 0:02:52.8]}
8... h6 {[%clk 0:02:57.9]} 9. Bh4 {[%clk 0:02:46.5]} 9... g5 {[%clk 0:02:57.7]}
10. Bg3 {[%clk 0:02:46.3]} 10... Nh5 {[%clk 0:02:55.3]} 11. h4 {[%clk
0:02:44.8]} 11... Nxg3 {[%clk 0:02:55.3]} 12. fxg3 {[%clk 0:02:44.6]} 12... g4
{[%clk 0:02:55.7]} 13. Nh2 {[%clk 0:02:17]} 13... h5 {[%clk 0:02:55.5]} 14. O-O
{[%clk 0:02:17]} 14... Nc5 {[%clk 0:02:54.7]} 15. Nxg4 {[%clk 0:02:14.4]} 15...
Bxg4 {[%clk 0:02:34.5]} 16. Bxg4 {[%clk 0:02:13.8]} 16... hxg4 {[%clk
0:02:35.4]} 17. Qxg4 {[%clk 0:02:12.9]} 17... Qd7 {[%clk 0:02:33.6]} 18. Rf5
{[%clk 0:02:09.4]} 18... f6 {[%clk 0:02:15.7]} 19. Raf1 {[%clk 0:02:04.1]} 19...
Rf7 {[%clk 0:01:55.4]} 20. b3 {[%clk 0:02:00.8]} 20... a5 {[%clk 0:01:54.9]} 21.
Nd1 {[%clk 0:01:48.3]} 21... Qe7 {[%clk 0:01:40.6]} 22. Ne3 {[%clk 0:01:45.9]}
22... Nd7 {[%clk 0:01:35.9]} 23. Rh5 {[%clk 0:01:41]} 23... f5 {[%clk 0:01:20]}
24. Nxf5 {[%clk 0:01:40.1]} 1-0

[Event "*** Titled Tuesday Blitz"]
[Site "Chess.com"]
[Date "2020.05.26"]
[Round "1"]
[White "Volodar_Murzin"]
[Black "Stronger1799"]
[Result "1-0"]
[WhiteElo "2722"]
[BlackElo "2357"]
[TimeControl "180+1"]
[EndTime "10:04:19 PDT"]
[Termination "Volodar_Murzin won by resignation"]

1. d4 {[%clk 0:03:00.9]} 1... Nf6 {[%clk 0:02:50.5]} 2. Nf3 {[%clk 0:02:59.7]}
2... g6 {[%clk 0:02:49.6]} 3. Bg5 {[%clk 0:02:59.3]} 3... Bg7 {[%clk 0:02:48.6]}
4. Nbd2 {[%clk 0:02:59.6]} 4... O-O {[%clk 0:02:44]} 5. c3 {[%clk 0:02:59.3]}
5... c5 {[%clk 0:02:28.5]} 6. Bxf6 {[%clk 0:02:55.6]} 6... exf6 {[%clk
0:01:40.7]} 7. dxc5 {[%clk 0:02:53.8]} 7... Qc7 {[%clk 0:01:20.4]} 8. Nb3 {[%clk
0:02:51.1]} 8... a5 {[%clk 0:01:10]} 9. a4 {[%clk 0:02:48.7]} 9... Na6 {[%clk
0:01:06.5]} 10. Qd6 {[%clk 0:02:47.1]} 10... Qc6 {[%clk 0:00:55.4]} 11. Nfd4
{[%clk 0:02:37.7]} 11... Qe4 {[%clk 0:00:50.7]} 12. e3 {[%clk 0:02:29.6]} 12...
Rd8 {[%clk 0:00:43.8]} 13. Qb6 {[%clk 0:02:18.5]} 13... Qe7 {[%clk 0:00:39.5]}
14. Nb5 {[%clk 0:02:11.4]} 14... Bf8 {[%clk 0:00:32.6]} 15. Be2 {[%clk
0:02:03.1]} 15... Nxc5 {[%clk 0:00:31.4]} 16. Nxc5 {[%clk 0:02:01.3]} 16... Qxc5
{[%clk 0:00:32.3]} 17. Qxd8 {[%clk 0:02:00.8]} 1-0

[Event "*** Titled Tuesday Blitz"]
[Site "Chess.com"]
[Date "2020.05.26"]
[Round "1"]
[White "HarutyunianTigranK"]
[Black "Justinz"]
[Result "1-0"]
[WhiteElo "2709"]
[BlackElo "2349"]
[TimeControl "180+1"]
[EndTime "10:04:31 PDT"]
[Termination "HarutyunianTigranK won by resignation"]

1. c4 {[%clk 0:03:00.5]} 1... e5 {[%clk 0:02:17]} 2. Nc3 {[%clk 0:02:59.8]} 2...
Nc6 {[%clk 0:02:15.3]} 3. Nf3 {[%clk 0:02:59.6]} 3... Nf6 {[%clk 0:02:13.4]} 4.
e4 {[%clk 0:02:59.5]} 4... Bc5 {[%clk 0:02:01]} 5. Nxe5 {[%clk 0:02:58.9]} 5...
Nxe5 {[%clk 0:01:55.8]} 6. d4 {[%clk 0:02:58.3]} 6... Bxd4 {[%clk 0:01:52.9]} 7.
Qxd4 {[%clk 0:02:57.6]} 7... d6 {[%clk 0:01:53.2]} 8. Be2 {[%clk 0:02:57.5]}
8... O-O {[%clk 0:01:52.7]} 9. O-O {[%clk 0:02:57.3]} 9... Re8 {[%clk
0:01:52.2]} 10. Bg5 {[%clk 0:02:56.7]} 10... h6 {[%clk 0:01:51.9]} 11. Bh4
{[%clk 0:02:56.6]} 11... Ned7 {[%clk 0:01:16.9]} 12. Rad1 {[%clk 0:02:54.3]}
12... Re6 {[%clk 0:01:10.6]} 13. f4 {[%clk 0:02:49.7]} 13... Qe8 {[%clk
0:01:10]} 14. Bf3 {[%clk 0:02:48.1]} 14... Nb6 {[%clk 0:00:29.8]} 15. b3 {[%clk
0:02:45.1]} 15... c5 {[%clk 0:00:25]} 16. Qd3 {[%clk 0:02:43.4]} 16... Bd7
{[%clk 0:00:20.1]} 17. f5 {[%clk 0:02:42.6]} 17... Re5 {[%clk 0:00:20.2]} 18.
Qxd6 {[%clk 0:02:37.3]} 18... Nh7 {[%clk 0:00:20.3]} 19. Bg3 {[%clk 0:02:32.8]}
19... Re7 {[%clk 0:00:19.7]} 20. Qxc5 {[%clk 0:02:29.4]} 20... Bc6 {[%clk
0:00:20]} 21. Nd5 {[%clk 0:02:22.1]} 21... Rd7 {[%clk 0:00:20.2]} 22. Nc7 {[%clk
0:02:14.8]} 1-0

[Event "*** Titled Tuesday Blitz"]
[Site "Chess.com"]
[Date "2020.05.26"]
[Round "1"]
[White "Jungle_Jaguar"]
[Black "Chessdemon2019"]
[Result "0-1"]
[WhiteElo "2593"]
[BlackElo "2287"]
[TimeControl "180+1"]
[EndTime "10:04:35 PDT"]
[Termination "Chessdemon2019 won by resignation"]

1. e4 {[%clk 0:03:00.2]} 1... c5 {[%clk 0:02:59.4]} 2. Nf3 {[%clk 0:03:00]} 2...
d6 {[%clk 0:02:59.5]} 3. d4 {[%clk 0:02:59.3]} 3... cxd4 {[%clk 0:03:00.4]} 4.
Qxd4 {[%clk 0:02:59.2]} 4... Nf6 {[%clk 0:03:01.1]} 5. c4 {[%clk 0:02:56]} 5...
Nc6 {[%clk 0:02:57.9]} 6. Qe3 {[%clk 0:02:55.9]} 6... Bg4 {[%clk 0:02:57.7]} 7.
Be2 {[%clk 0:02:51.8]} 7... g6 {[%clk 0:02:55.1]} 8. O-O {[%clk 0:02:49.9]} 8...
Bg7 {[%clk 0:02:53.9]} 9. Nc3 {[%clk 0:02:50.3]} 9... O-O {[%clk 0:02:38.8]} 10.
Rd1 {[%clk 0:02:50.2]} 10... Bxf3 {[%clk 0:02:26.9]} 11. Bxf3 {[%clk 0:02:47.2]}
11... Qc7 {[%clk 0:02:19]} 12. b3 {[%clk 0:02:45.8]} 12... a6 {[%clk 0:02:10.1]}
13. Bb2 {[%clk 0:02:45.7]} 13... Rac8 {[%clk 0:02:00.8]} 14. Rd2 {[%clk
0:02:33.3]} 14... Qb8 {[%clk 0:01:45.2]} 15. Rad1 {[%clk 0:02:30.5]} 15... b5
{[%clk 0:01:42.9]} 16. cxb5 {[%clk 0:02:24.9]} 16... axb5 {[%clk 0:01:43.1]} 17.
Nd5 {[%clk 0:02:25.4]} 17... Nxd5 {[%clk 0:01:41.2]} 18. exd5 {[%clk 0:02:25.1]}
18... Ne5 {[%clk 0:01:38.2]} 19. Be2 {[%clk 0:02:23.6]} 19... Rc7 {[%clk
0:01:32]} 20. f4 {[%clk 0:02:09.5]} 20... Nd7 {[%clk 0:01:30.5]} 21. Bxg7 {[%clk
0:02:09.3]} 21... Kxg7 {[%clk 0:01:30.2]} 22. Qxe7 {[%clk 0:02:09.9]} 22... Qb6+
{[%clk 0:01:20.9]} 23. Kh1 {[%clk 0:02:05.8]} 23... Nf6 {[%clk 0:01:17.9]} 24.
Qxc7 {[%clk 0:01:56.5]} 24... Qxc7 {[%clk 0:01:17.1]} 25. Bxb5 {[%clk
0:01:56.9]} 25... Ne4 {[%clk 0:01:13.3]} 26. Rb2 {[%clk 0:01:40.8]} 26... Qc5
{[%clk 0:01:01.9]} 27. Bc4 {[%clk 0:01:38.8]} 27... Nf2+ {[%clk 0:01:01.3]} 28.
Kg1 {[%clk 0:01:39.4]} 28... Nxd1+ {[%clk 0:01:01.1]} 0-1